fUST/lending_fUST_20240517
["ID","MTS","AMOUNT","RATE_DAILY","PERIOD"]
[327277553,1715957439935,-500.0,0.00016706,2]
[327277555,1715957439944,-502.20492678,0.00016706,2]
[327277557,1715957439954,-500.0,0.00016706,2]
[327277559,1715957439964,-517.81911018,0.00016706,2]
[327277561,1715957439973,-500.0,0.00016706,2]
[327277563,1715957439983,-500.0,0.00016706,2]
[327277565,1715957439992,-500.0,0.00016706,2]
[327277567,1715957440002,-500.0,0.00016706,2]
[327277568,1715957440011,-500.0,0.00016706,2]
[327277571,1715957440021,-616.88,0.00016706,2]
[327277573,1715957440031,-500.0,0.00016706,2]
[327277575,1715957440040,-500.0,0.00016706,2]
[327277577,1715957440051,-500.0,0.00016706,2]
[327277579,1715957440062,-501.76010348,0.00016706,2]
[327277581,1715957440071,-512.86079033,0.00016706,2]
[327277583,1715957440081,-500.0,0.00016706,2]
[327277585,1715957440090,-500.47322055,0.00016706,2]
[327277587,1715957440101,-500.0,0.00016706,2]
[327277589,1715957440110,-500.0,0.00016706,2]
[327277591,1715957440119,-500.0,0.00016706,2]
[327277593,1715957440129,-500.0,0.00016706,2]
[327277595,1715957440139,-500.0,0.00016706,2]
[327277597,1715957440148,-519.76,0.00016706,2]
[327277599,1715957440158,-500.0,0.00016706,2]
[327277601,1715957440168,-500.0,0.00016706,2]
[327277603,1715957440178,-501.24730573,0.00016706,2]
[327277605,1715957440188,-500.52781819,0.00016706,2]
[327277607,1715957440198,-500.0,0.00016706,2]
[327277609,1715957440207,-500.0,0.00016706,2]
[327277611,1715957440217,-500.0,0.00016706,2]
[327277613,1715957440226,-500.0,0.00016706,2]
[327277615,1715957440236,-500.0,0.00016706,2]
[327277617,1715957440245,-501.683168,0.00016706,2]
[327277619,1715957440255,-500.0,0.00016706,2]
[327277621,1715957440267,-623.65829768,0.00016707,2]
[327277624,1715957440277,-53662.8116643,0.00016707,2]
[327277626,1715957440287,-500.0,0.00016707,2]
[327277628,1715957440297,-504.64613082,0.00016708,2]
[327277630,1715957440307,-530.23,0.00016708,2]
[327277632,1715957440316,-501.56644249,0.00016708,2]
[327277634,1715957440326,-395.24628114,0.00016708,2]
[327277636,1715957440335,-502.55552709,0.00016708,2]
[327277638,1715957440346,-208.11746729,0.00016708,2]
[327277641,1715957440356,-500.0,0.00016708,2]
[327277643,1715957440366,-500.0,0.00016708,2]
[327277646,1715957440376,-500.0,0.00016708,2]
[327277649,1715957440385,-467.65846421,0.00016708,2]
[327277651,1715957440395,-500.0,0.00016708,2]
[327277654,1715957440405,-1238.15,0.00016708,2]
[327277656,1715957440416,-500.0,0.00016708,2]
[327277659,1715957440425,-304.9623392,0.00016708,2]
[327277661,1715957440435,-500.0,0.00016708,2]
[327277663,1715957440445,-500.0,0.00016708,2]
[327277665,1715957440457,-500.0,0.00016708,2]
[327277667,1715957440467,-501.05433035,0.00016708,2]
[327277669,1715957440476,-500.0,0.00016708,2]
[327277671,1715957440486,-500.0,0.00016708,2]
[327277673,1715957440495,-502.21056491,0.00016708,2]
[327277674,1715957440504,-500.0,0.00016708,2]
[327277676,1715957440514,-500.0,0.00016708,2]
[327277677,1715957440524,-500.0,0.00016708,2]
[327277678,1715957440534,-525.8,0.00016708,2]
[327277679,1715957440544,-500.0,0.00016708,2]
[327277680,1715957440555,-500.0,0.00016708,2]
[327277681,1715957440565,-169.08,0.00016708,2]
[327277682,1715957440574,-259.56,0.00016708,2]
[327277683,1715957440584,-500.0,0.00016708,4]
[327277684,1715957440594,-589.51951981,0.00016708,2]
[327277685,1715957440606,-500.0,0.00016708,2]
[327277686,1715957440616,-500.0,0.00016708,2]
[327277687,1715957440626,-501.25720095,0.00016708,2]
[327277688,1715957440636,-510.74930335,0.00016708,2]
[327277689,1715957440646,-500.44713499,0.00016708,2]
[327277690,1715957440656,-500.0,0.00016708,2]
[327277691,1715957440667,-500.0,0.00016708,2]
[327277692,1715957440677,-501.03023719,0.00016708,2]
[327277693,1715957440686,-488.04384634,0.00016708,2]
[327277694,1715957440695,-331.28,0.00016708,2]
[327277695,1715957440706,-500.0,0.00016708,2]
[327277696,1715957440715,-500.0,0.00016708,2]
[327277697,1715957440725,-500.18295556,0.00016708,2]
[327277698,1715957440738,-501.92052098,0.00016708,2]
[327277699,1715957440747,-503.19134379,0.00016708,2]
[327277700,1715957440757,-500.0,0.00016708,2]
[327277701,1715957440766,-500.0,0.00016708,2]
[327277703,1715957440778,-500.0,0.00016708,2]
[327277705,1715957440787,-315.08786585,0.00016708,2]
[327277707,1715957440796,-237.75,0.00016708,2]
[327277709,1715957440806,-521.51,0.00016708,2]
[327277711,1715957440817,-504.02315928,0.00016708,2]
[327277713,1715957440826,-501.54983134,0.00016708,2]
[327277715,1715957440835,-501.02206245,0.00016708,2]
[327277732,1715957440846,-421.45599634,0.00016708,2]
[327277734,1715957440998,-500.0,0.00016708,2]
[327277736,1715957441008,-504.08014551,0.00016708,2]
[327277738,1715957441017,-500.0,0.0001671,2]
[327277740,1715957441027,-501.35068182,0.0001671,2]
[327277742,1715957441036,-500.0,0.0001671,2]
[327277744,1715957441045,-500.0,0.0001671,2]
[327277746,1715957441054,-500.0,0.00016867,2]
[327277748,1715957441063,-5434.74144782,0.00016979,3]
[327277750,1715957441072,-499.99611016,0.00016979,2]
[327277752,1715957441081,-488.83291104,0.00016979,2]
[327277754,1715957441091,-500.0,0.00016979,2]
[327277756,1715957441101,-500.0,0.00016979,2]
[327277758,1715957441110,-500.0,0.00016979,2]
[327277760,1715957441120,-500.0,0.00016979,2]
[327277762,1715957441129,-500.0,0.00016979,2]
[327277764,1715957441138,-500.0,0.00016979,2]
[327277766,1715957441147,-500.0,0.00016979,2]
[327277768,1715957441156,-500.0,0.00016979,2]
[327277770,1715957441165,-500.0,0.00016979,2]
[327277772,1715957441175,-500.0,0.00016979,2]
[327277774,1715957441184,-858.66,0.00016979,2]
[327277776,1715957441193,-500.0,0.00016979,2]
[327277778,1715957441204,-500.0,0.00016979,2]
[327277780,1715957441213,-500.0,0.00016979,2]
[327277782,1715957441222,-500.0,0.00016979,2]
[327277784,1715957441231,-500.0,0.00016979,2]
[327277786,1715957441240,-3054.3,0.00016979,2]
[327277788,1715957441249,-500.0,0.00016979,2]
[327277790,1715957441259,-501.98543412,0.00016979,2]
[327277792,1715957441269,-177.45,0.00016979,2]
[327277794,1715957441278,-383.78514551,0.00016979,2]
[327277796,1715957441287,-358.42,0.00016979,2]
[327277798,1715957441296,-648.28,0.00016979,2]
[327277800,1715957441306,-7039.26,0.00016979,2]
[327277802,1715957441315,-500.0,0.00016979,2]
[327277804,1715957441329,-500.0,0.00016979,2]
[327277806,1715957441338,-500.0,0.00016979,2]
[327277808,1715957441347,-808.47,0.00016979,2]
[327277810,1715957441356,-500.0,0.00016979,2]
[327277812,1715957441365,-500.0,0.00016979,2]
[327277814,1715957441374,-500.0,0.00016979,2]
[327277816,1715957441384,-500.0,0.00016979,2]
[327277818,1715957441394,-253.85877786,0.00016979,2]
[327277820,1715957441404,-500.0,0.00016979,2]
[327277822,1715957441414,-500.0,0.00016979,2]
[327277824,1715957441424,-500.0,0.00016979,2]
[327277826,1715957441433,-500.0,0.00016979,2]
[327277828,1715957441443,-500.0,0.00016979,2]
[327277830,1715957441452,-500.0,0.00016979,2]
[327277832,1715957441463,-500.0,0.00016979,2]
[327277834,1715957441472,-3624.91,0.00016979,2]
[327277836,1715957441481,-500.0,0.00016979,2]
[327277838,1715957441491,-500.0,0.0001698,2]
[327277840,1715957441501,-532.34675723,0.0001698,2]
[327277842,1715957441510,-500.0,0.0001698,2]
[327277844,1715957441519,-500.0,0.0001698,2]
[327277846,1715957441528,-500.0,0.0001698,2]
[327277848,1715957441537,-500.0,0.0001698,2]
[327277850,1715957441546,-500.0,0.0001698,2]
[327277852,1715957441555,-500.0,0.0001698,2]
[327277854,1715957441564,-500.0,0.0001698,2]
[327277856,1715957441574,-500.0,0.0001698,2]
[327277858,1715957441583,-500.0,0.0001698,2]
[327277860,1715957441592,-500.85971969,0.0001698,2]
[327277862,1715957441604,-500.0,0.0001698,2]
[327277864,1715957441612,-500.0,0.0001698,2]
[327277866,1715957441621,-500.0,0.0001698,2]
[327277868,1715957441630,-500.0,0.0001698,2]
[327277870,1715957441639,-425.42079769,0.0001698,2]
[327277872,1715957441648,-500.0,0.0001698,2]
[327277874,1715957441658,-500.0,0.0001698,2]
[327277876,1715957441667,-500.0,0.0001698,2]
[327277878,1715957441676,-500.0,0.0001698,2]
[327277880,1715957441685,-500.0,0.0001698,2]
[327277882,1715957441694,-500.0,0.0001698,2]
[327277884,1715957441703,-500.0,0.0001698,2]
[327277886,1715957441712,-500.0,0.0001698,2]
[327277888,1715957441722,-500.0,0.0001698,2]
[327277889,1715957441736,-500.0,0.0001698,2]
[327277891,1715957441745,-500.0,0.0001698,2]
[327277893,1715957441754,-500.0,0.0001698,2]
[327277896,1715957441763,-162.12183876,0.0001698,2]
[327277898,1715957441773,-500.0,0.0001698,2]
[327277900,1715957441782,-1238.15,0.00016982,2]
[327277902,1715957441792,-500.0,0.00016982,2]
[327277904,1715957441802,-643.22,0.00016982,2]
[327277906,1715957441813,-500.0,0.00016982,2]
[327277908,1715957441823,-500.0,0.00016982,2]
[327277910,1715957441832,-500.0,0.00016982,2]
[327277912,1715957441844,-500.0,0.00016982,2]
[327277914,1715957441855,-500.0,0.00016982,2]
[327277916,1715957441864,-500.0,0.00016982,2]
[327277918,1715957441873,-500.0,0.00016982,2]
[327277920,1715957441886,-500.0,0.00016983,2]
[327277922,1715957441895,-500.0,0.00016984,2]
[327277924,1715957441905,-375.13545042,0.00016984,2]
[327277940,1715957442047,-124.86454958,0.00016984,2]
[327277942,1715957442056,-193.60545042,0.00016994,2]
[327277955,1715957442166,-129.50582048,0.00016994,2]
[327277957,1715957442179,-150.0,0.00017204,3]
[327277960,1715957442192,-150.0,0.00017204,2]
[327277962,1715957442204,-500.0,0.00017252,2]
[327277964,1715957442214,-521.71225864,0.00017253,2]
[327278143,1715957443824,-500.0,0.00016704,2]
[327278145,1715957443837,-502.0663975,0.00016705,2]
[327278148,1715957443850,-505.97161806,0.00016706,2]
[327278150,1715957443861,-500.0,0.00016978,2]
[327278152,1715957443873,-53.80902848,0.00017253,2]
[327278154,1715957443884,-500.0,0.00017253,2]
[327278156,1715957443894,-500.0,0.00017253,2]
[327278158,1715957443904,-500.0,0.00017253,2]
[327278161,1715957443916,-858.66,0.00017253,2]
[327278163,1715957443926,-500.0,0.00017253,2]
[327278165,1715957443938,-3054.3,0.00017253,2]
[327278167,1715957443950,-648.28,0.00017253,2]
[327278170,1715957443961,-7039.26,0.00017253,2]
[327278172,1715957443973,-500.0,0.00017253,2]
[327278174,1715957443985,-500.0,0.00017253,2]
[327278176,1715957443996,-808.47,0.00017253,2]
[327278179,1715957444008,-500.0,0.00017253,2]
[327278181,1715957444020,-500.0,0.00017253,2]
[327278183,1715957444032,-500.0,0.00017253,2]
[327278186,1715957444045,-500.0,0.00017253,2]
[327278188,1715957444056,-500.0,0.00017253,2]
[327278190,1715957444066,-3624.91,0.00017253,2]
[327278192,1715957444075,-500.0,0.00017254,2]
[327278194,1715957444085,-500.0,0.00017254,2]
[327278196,1715957444096,-500.0,0.00017254,2]
[327278198,1715957444108,-500.0,0.00017254,2]
[327278201,1715957444120,-500.0,0.00017254,2]
[327278203,1715957444132,-500.0,0.00017254,2]
[327278205,1715957444144,-500.0,0.00017254,2]
[327278207,1715957444154,-500.0,0.00017254,2]
[327278209,1715957444164,-574.8269778,0.00017254,2]
[327278211,1715957444174,-500.0,0.00017254,2]
[327278213,1715957444185,-500.0,0.00017254,2]
[327278216,1715957444196,-500.0,0.00017254,2]
[327278218,1715957444207,-500.0,0.00017254,2]
[327278220,1715957444218,-500.0,0.00017254,2]
[327278222,1715957444229,-500.0,0.00017254,2]
[327278224,1715957444239,-500.0,0.00017254,2]
[327278227,1715957444250,-167.41944615,0.00017254,2]
[327278229,1715957444260,-1238.15,0.00017256,2]
[327278231,1715957444271,-500.0,0.00017256,2]
[327278233,1715957444282,-480.25444195,0.00017256,2]
[327278235,1715957444292,-500.0,0.00017256,2]
[327278237,1715957444302,-512.2667002,0.00017256,2]
[327278239,1715957444313,-500.0,0.00017257,2]
[327278241,1715957444323,-323.1112709,0.00017381,2]
[327278243,1715957444334,-1104.90153803,0.0001743,2]
[327278246,1715957444345,-1237.29190451,0.000175,2]
[327278248,1715957444356,-500.0,0.00017527,2]
[327278250,1715957444367,-500.0,0.00017527,2]
[327278252,1715957444377,-451.74,0.00017527,2]
[327278254,1715957444388,-858.66,0.00017527,2]
[327278256,1715957444398,-500.0,0.00017527,2]
[327278258,1715957444409,-3054.3,0.00017527,2]
[327278261,1715957444419,-648.28,0.00017527,2]
[327278263,1715957444429,-7039.26,0.00017527,2]
[327278265,1715957444439,-389.0,0.00017527,2]
[327278267,1715957444450,-808.47,0.00017527,2]
[327278269,1715957444460,-397.84934111,0.00017527,2]
[327278271,1715957444471,-500.0,0.00017527,2]
[327278273,1715957444482,-500.0,0.00017527,2]
[327278276,1715957444492,-500.0,0.00017527,2]
[327278278,1715957444503,-3624.91,0.00017527,2]
[327278280,1715957444513,-500.0,0.00017528,2]
[327278282,1715957444523,-500.0,0.00017528,2]
[327278284,1715957444534,-500.0,0.00017528,2]
[327278286,1715957444544,-500.0,0.00017528,2]
[327278288,1715957444555,-637.57837896,0.00017528,2]
[327278290,1715957444566,-500.0,0.00017528,2]
[327278293,1715957444577,-500.0,0.00017528,2]
[327278295,1715957444587,-500.0,0.00017528,2]
[327278297,1715957444598,-500.0,0.00017528,2]
[327278299,1715957444610,-500.0,0.00017528,2]
[327278301,1715957444621,-500.0,0.00017528,2]
[327278303,1715957444632,-1238.15,0.0001753,2]
[327278305,1715957444643,-500.0,0.00017531,2]
[327278307,1715957444654,-416.98047207,0.00017687,2]
[327278310,1715957444665,-323.1112709,0.00017767,2]
[327278312,1715957444676,-4221.46001999,0.00017788,2]
[327278314,1715957444687,-500.0,0.00017801,2]
[327278316,1715957444697,-500.0,0.00017801,2]
[327278318,1715957444708,-858.66,0.00017801,2]
[327278320,1715957444718,-500.0,0.00017801,2]
[327278321,1715957444731,-3054.3,0.00017801,2]
[327278322,1715957444742,-648.28,0.00017801,2]
[327278323,1715957444753,-7039.26,0.00017801,2]
[327278324,1715957444764,-808.47,0.00017801,2]
[327278325,1715957444776,-500.0,0.00017801,2]
[327278326,1715957444787,-500.0,0.00017801,2]
[327278327,1715957444797,-3624.91,0.00017801,2]
[327278328,1715957444810,-235.92995501,0.00017802,2]
[327278329,1715957444821,-333.28829949,0.00017802,2]
[327278330,1715957444831,-500.0,0.00017802,2]
[327278331,1715957444842,-426.12,0.00017802,2]
[327278332,1715957444854,-500.0,0.00017802,2]
[327278333,1715957444865,-202.42736552,0.00017802,2]
[327278334,1715957444876,-500.0,0.00017802,2]
[327278336,1715957444888,-500.0,0.00017802,2]
[327278339,1715957444899,-500.0,0.00017803,2]
[327278341,1715957444910,-1238.15,0.00017804,2]
[327278344,1715957444934,-500.0,0.00017805,2]
[327278346,1715957444945,-150.0,0.00017807,2]
[327278348,1715957444956,-10448.86120355,0.00017898,2]
[327278350,1715957444965,-150.0,0.00017913,2]
[327278352,1715957444975,-88888.0,0.00017977,2]
[327278354,1715957444985,-189.86799103,0.00018,2]
[327278356,1715957444996,-895.80593484,0.00018,2]
[327278358,1715957445006,-185.08038665,0.00018074,2]
[327278360,1715957445016,-157.20588658,0.00018075,2]
[327278363,1715957445027,-574.73449503,0.00018075,2]
[327278386,1715957445242,-484.41,0.00018075,2]
[327278388,1715957445253,-330.33,0.00018075,2]
[327278390,1715957445262,-858.66,0.00018075,2]
[327278392,1715957445272,-500.0,0.00018075,2]
[327278394,1715957445281,-3054.3,0.00018075,2]
[327278396,1715957445290,-648.28,0.00018075,2]
[327278398,1715957445299,-7039.26,0.00018075,2]
[327278400,1715957445308,-808.47,0.00018075,2]
[327278402,1715957445319,-500.0,0.00018075,2]
[327278404,1715957445328,-433.77876867,0.00018075,2]
[327278406,1715957445337,-3624.91,0.00018075,2]
[327278408,1715957445346,-412.53784759,0.00018076,2]
[327278410,1715957445356,-485.09916314,0.00018076,2]
[327278412,1715957445365,-500.0,0.00018076,2]
[327278413,1715957445374,-501.7411033,0.00018076,2]
[327278415,1715957445384,-500.0,0.00018076,2]
[327278417,1715957445393,-500.0,0.00018076,2]
[327278419,1715957445403,-500.0,0.00018076,2]
[327278421,1715957445413,-3060.90965728,0.00018077,2]
[327278424,1715957445423,-262.09871976,0.00018077,2]
[327278425,1715957445432,-1349.86150143,0.00018077,2]
[327278427,1715957445441,-521.89035678,0.00018077,2]
[327278429,1715957445452,-155.76460433,0.00018077,2]
[327278431,1715957445461,-500.0,0.00018077,2]
[327278434,1715957445471,-1238.15,0.00018078,2]
[327278435,1715957445481,-2000.0,0.00018152,2]
[327278438,1715957445491,-323.1112709,0.00018154,2]
[327278440,1715957445501,-207.02451915,0.00018196,2]
[327278442,1715957445510,-929.19325588,0.00018196,2]
[327278444,1715957445520,-500.0,0.00018251,2]
[327278446,1715957445530,-500.0,0.00018251,2]
[327278447,1715957445539,-500.0,0.00018254,2]
[327278449,1715957445549,-500.0,0.00018254,2]
[327278451,1715957445559,-1594.9155289,0.00018349,3]
[327278454,1715957445568,-858.66,0.00018349,2]
[327278455,1715957445580,-500.0,0.00018349,2]
[327278457,1715957445590,-3054.3,0.00018349,2]
[327278459,1715957445599,-648.28,0.00018349,2]
[327278461,1715957445608,-7039.26,0.00018349,2]
[327278463,1715957445618,-808.47,0.00018349,2]
[327278466,1715957445629,-500.0,0.00018349,2]
[327278468,1715957445638,-3624.91,0.00018349,2]
[327278470,1715957445647,-500.0,0.0001835,2]
[327278471,1715957445656,-565.52,0.0001835,2]
[327278473,1715957445665,-500.0,0.0001835,2]
[327278475,1715957445674,-500.0,0.00018351,2]
[327278478,1715957445684,-1238.15,0.00018352,2]
[327278479,1715957445694,-150.0,0.00018621,2]
[327278482,1715957445706,-500.0,0.00018622,2]
[327278484,1715957445716,-858.66,0.00018623,2]
[327278486,1715957445726,-500.0,0.00018623,2]
[327278488,1715957445738,-3054.3,0.00018623,2]
[327278490,1715957445748,-648.28,0.00018623,2]
[327278492,1715957445757,-7039.26,0.00018623,2]
[327278494,1715957445766,-808.47,0.00018623,2]
[327278496,1715957445776,-500.0,0.00018623,2]
[327278498,1715957445785,-3624.91,0.00018623,2]
[327278500,1715957445795,-500.0,0.00018624,2]
[327278502,1715957445804,-500.0,0.00018624,2]
[327278504,1715957445814,-1238.15,0.00018626,2]
[327278505,1715957445823,-647.05810478,0.00018626,2]
[327278510,1715957445833,-858.66,0.00018897,2]
[327278512,1715957445842,-500.0,0.00018897,2]
[327278516,1715957445852,-3054.3,0.00018897,2]
[327278518,1715957445862,-648.28,0.00018897,2]
[327278521,1715957445871,-7039.26,0.00018897,2]
[327278524,1715957445880,-808.47,0.00018897,2]
[327278527,1715957445890,-500.0,0.00018897,2]
[327278531,1715957445899,-3624.91,0.00018897,2]
[327278533,1715957445909,-500.0,0.00018898,2]
[327278537,1715957445919,-248.09243055,0.00018898,2]
[327278540,1715957445928,-500.0,0.00018899,2]
[327278543,1715957445937,-1238.15,0.000189,2]
[327278546,1715957445947,-7265.24455653,0.000189,2]
[327278549,1715957445956,-500.0,0.00018999,2]
[327278552,1715957445966,-500.0,0.00018999,2]
[327278555,1715957445975,-500.0,0.00018999,2]
[327278557,1715957445984,-500.0,0.00018999,2]
[327278561,1715957445994,-202.95050598,0.00018999,2]
[327278564,1715957446003,-154.7215013,0.00019,2]
[327278567,1715957446012,-7966.29275223,0.00019,2]
[327278569,1715957446021,-175.15266156,0.00019,2]
[327278572,1715957446031,-42274.72383655,0.00019,2]
[327278724,1715957941402,286.62560404,9.999e-05,2]
[327278725,1715958117968,525.57390868,9.999e-05,2]
[327278726,1715958188579,24900.0,0.00014856,2]
[327278727,1715958189711,1889.8027822,0.00014957,2]
[327278728,1715958237836,482.500014,0.00014856,2]
[327278729,1715958260463,2596.99709495,9.999e-05,2]
[327278730,1715958374970,159.23644669,9.999e-05,2]
[327278731,1715958443176,-1186.0095279,0.00015076,2]
[327278732,1715958443198,-1000.0,0.00015889,2]
[327278733,1715958443222,-423.12837928,0.000159,2]
[327278751,1715958634226,-159.23644669,0.00015899,2]
[327278753,1715958634236,-1325.42665719,0.000159,2]
[327278755,1715958634246,-400.0,0.00015958,2]
[327278757,1715958634255,-999.7854378,0.00015997,2]
[327278759,1715958634264,-561.78139119,0.00015997,2]
[327278761,1715958634274,-467.95224184,0.00015997,2]
[327278763,1715958634283,-154.81422293,0.00015997,2]
[327278765,1715958634294,-389.21034323,0.00015997,2]
[327278790,1715958634604,-1244.20491629,0.00015997,2]
[327278791,1715958634614,-201.21239824,0.00015997,2]
[327278792,1715958634623,-500.7850368,0.00015997,2]
[327278793,1715958634633,-2792.7493606,0.00015997,2]
[327278794,1715958634643,-186.89843223,0.00015997,2]
[327278795,1715958634652,-165.28980394,0.00015997,2]
[327278796,1715958634661,-292.60916471,0.00015997,2]
[327278797,1715958634671,-623.65829768,0.00015998,2]
[327278798,1715958634681,-28204.91164785,0.00015999,2]
[327278855,1715958639092,-25457.90001645,0.00015999,2]
[327278857,1715958639104,-24346.27338093,0.00016,2]
[327278859,1715958639115,-151.53380243,0.00016338,2]
[327278861,1715958639124,-499.99611016,0.00016438,2]
[327278863,1715958639135,-488.83291104,0.00016438,2]
[327278865,1715958639146,-500.0,0.00016438,2]
[327278867,1715958639155,-500.0,0.00016438,2]
[327278869,1715958639165,-500.0,0.00016438,2]
[327278871,1715958639174,-500.0,0.00016438,2]
[327278873,1715958639186,-500.0,0.00016438,2]
[327278875,1715958639198,-500.0,0.00016438,2]
[327278877,1715958639208,-500.0,0.00016438,2]
[327278879,1715958639217,-500.0,0.00016438,2]
[327278881,1715958639226,-500.0,0.00016438,2]
[327278883,1715958639236,-500.0,0.00016438,2]
[327278885,1715958639246,-500.0,0.00016438,2]
[327278887,1715958639255,-500.0,0.00016438,2]
[327278889,1715958639265,-501.15457218,0.00016438,2]
[327278891,1715958639274,-500.0,0.00016438,2]
[327278893,1715958639284,-500.0,0.00016438,2]
[327278895,1715958639293,-506.49840294,0.00016438,2]
[327278897,1715958639304,-500.0,0.00016438,2]
[327278899,1715958639314,-500.0,0.00016438,2]
[327278901,1715958639323,-500.0,0.00016438,2]
[327278903,1715958639333,-500.0,0.00016438,2]
[327278905,1715958639343,-319.91055385,0.00016438,2]
[327278907,1715958639353,-500.0,0.00016438,2]
[327278909,1715958639362,-500.0,0.00016438,2]
[327278911,1715958639371,-500.0,0.00016438,2]
[327278913,1715958639380,-500.0,0.00016438,2]
[327278915,1715958639391,-500.0,0.00016438,2]
[327278917,1715958639401,-383.78514551,0.00016438,2]
[327278919,1715958639410,-500.0,0.00016438,2]
[327278921,1715958639419,-501.98543412,0.00016438,2]
[327278923,1715958639429,-500.0,0.00016438,2]
[327278925,1715958639438,-381.39477028,0.00016438,2]
[327278927,1715958639448,-500.0,0.00016438,2]
[327278929,1715958639457,-500.0,0.00016438,2]
[327278931,1715958639467,-504.84163193,0.00016438,2]
[327278933,1715958639476,-501.41407099,0.00016438,2]
[327278935,1715958639485,-500.0,0.00016438,2]
[327278937,1715958639495,-500.0,0.00016438,2]
[327278939,1715958639505,-531.34110359,0.00016438,2]
[327278941,1715958639514,-500.0,0.00016438,2]
[327278943,1715958639523,-500.0,0.00016438,2]
[327278945,1715958639533,-500.0,0.00016438,2]
[327278947,1715958639542,-177.45,0.00016438,2]
[327278949,1715958639553,-505.18062299,0.00016438,2]
[327278951,1715958639563,-567.74176865,0.00016438,2]
[327278953,1715958639573,-500.0,0.00016438,2]
[327278955,1715958639582,-514.39481463,0.00016438,2]
[327278957,1715958639591,-358.42,0.00016438,2]
[327278959,1715958639601,-501.15784892,0.00016438,2]
[327278961,1715958639611,-500.0,0.00016438,2]
[327278963,1715958639620,-505.14416001,0.00016438,2]
[327278965,1715958639630,-514.1380679,0.00016438,2]
[327278967,1715958639639,-500.0,0.00016438,2]
[327278969,1715958639648,-500.0,0.00016438,2]
[327278971,1715958639658,-500.0,0.00016438,2]
[327278973,1715958639667,-519.09,0.00016438,2]
[327278975,1715958639676,-500.0,0.00016438,2]
[327278977,1715958639686,-504.4740575,0.00016438,2]
[327278979,1715958639695,-531.25128795,0.00016438,2]
[327278981,1715958639705,-253.85877786,0.00016438,2]
[327278983,1715958639715,-500.0,0.00016438,2]
[327278985,1715958639724,-500.0,0.00016438,2]
[327278987,1715958639734,-502.20492678,0.00016438,2]
[327278989,1715958639743,-497.58485344,0.00016438,2]
[327278991,1715958639753,-502.15376415,0.00016438,2]
[327278993,1715958639761,-506.35604843,0.00016438,2]
[327278995,1715958639771,-517.81911018,0.00016438,2]
[327278997,1715958639780,-504.38140618,0.00016438,2]
[327278999,1715958639789,-500.0,0.00016438,2]
[327279000,1715958639800,-502.09108214,0.00016438,2]
[327279002,1715958639809,-501.58782745,0.00016438,2]
[327279004,1715958639818,-507.80704234,0.00016438,2]
[327279007,1715958639828,-500.0,0.00016438,2]
[327279008,1715958639837,-500.0,0.00016438,2]
[327279010,1715958639847,-504.64613082,0.00016438,2]
[327279012,1715958639856,-503.41238744,0.00016438,2]
[327279014,1715958639865,-501.05395287,0.00016438,2]
[327279016,1715958639875,-530.23,0.00016438,2]
[327279018,1715958639885,-501.56644249,0.00016438,2]
[327279020,1715958639894,-395.24628114,0.00016438,2]